Cogmind - Beta 17 @@@ ROGUE MODE // 2026.07.16 @ 09:12:21 // Winter2019/RPGLIKE Player: Gallgagger Result: Self-destructed Performance ------------- Evolutions (1) 500 Regions Visited (6) 1200 Robots Destroyed (0) 0 Value Destroyed (0) 0 Prototype IDs (23) 460 Alien Tech Used (0) 0 Bonus (500) 500 TOTAL SCORE: 2660 Bonus ------- Pacifist 200 Aligned with FarCom 300 Cogmind --------- Core Integrity 356/1250 Matter 172/300 Energy 94/100 System Corruption 0% Temperature Cool (12) Movement Flying (26) Location -8/Mines Parts ------- > --- POWER (1) -------- (None) > --- PROPULSION (4) --- Cesium-ion Thruster Cesium-ion Thruster Cesium-ion Thruster Cesium-ion Thruster > --- UTILITY (1) ------ (None) > --- WEAPON (1) ------- Makeshift Sword > --- INVENTORY (0) ---- (None) Peak State ------------ > --- POWER ------------ (None) > --- PROPULSION ------- Cesium-ion Thruster Cesium-ion Thruster Cesium-ion Thruster Cesium-ion Thruster > --- UTILITY ---------- (None) > --- WEAPON ----------- Makeshift Sword > --- INVENTORY -------- (None) [Rating: 16] Favorites ----------- Power None Propulsion Cesium-ion Thruster Flight Unit Cesium-ion Thruster Utility None Weapon Makeshift Sword Energy Cannon Ion Cannon Slashing Weapon Makeshift Sword Build | -11 -10 -10 -9 -9 -9 -8 ------- Run | Yrd Mat Min Mat Min Exi Min Slots Evolved 3 | . . . 3 . . . Power . | . . . . . . . Propulsion 3 | . . . 3 . . . Utility . | . . . . . . . Weapon . | . . . . . . . Parts Attached 7 | . . . 6 1 . . Power . | . . . . . . . Engine . | . . . . . . . Core . | . . . . . . . Reactor . | . . . . . . . Propulsion 4 | . . . 4 . . . Treads . | . . . . . . . Leg . | . . . . . . . Wheel . | . . . . . . . Hover . | . . . . . . . Flight 4 | . . . 4 . . . Utility . | . . . . . . . Device . | . . . . . . . Storage . | . . . . . . . Processor . | . . . . . . . Hackware . | . . . . . . . Protection . | . . . . . . . Artifact . | . . . . . . . Weapon 3 | . . . 2 1 . . Energy Gun . | . . . . . . . Energy Cannon 1 | . . . 1 . . . Ballistic Gun . | . . . . . . . Ballistic Cannon . | . . . . . . . Launcher . | . . . . . . . Special Weapon . | . . . . . . . Impact Weapon . | . . . . . . . Slashing Weapon 2 | . . . 1 1 . . Piercing Weapon . | . . . . . . . Special Melee Weapon . | . . . . . . . Unidentified Prototypes . | . . . . . . . Parts Lost . | . . . . . . . Power . | . . . . . . . Propulsion . | . . . . . . . Utility . | . . . . . . . Weapon . | . . . . . . . Highest Loss Streak . | . . . . . . . To Critical Strikes . | . . . . . . . Average Backups . | . . . . . . . Power . | . . . . . . . Propulsion . | . . . . . . . Utility . | . . . . . . . Weapon . | . . . . . . . Tool/Special . | . . . . . . . Unused Backups . | . . . . . . . Power . | . . . . . . . Propulsion . | . . . . . . . Utility . | . . . . . . . Weapon . | . . . . . . . Tool/Special . | . . . . . . . Average Slot Usage (%) 31 | . . . 32 71 71 71 Flight 24 | . . . 22 57 57 57 Energy Cannon 2 | . . . 7 . . . Slashing Weapon 4 | . . . 1 14 14 14 Peak Build Rating 16 | . . . 15 16 16 16 Average Rating 6 | . . . 6 15 16 16 On Entrance 6 | . . . . 13 16 16 Avg Prop Armor Cover (%) . | . . . . . . . Naked Turns 257 | . 55 122 80 . . . Heaviest Build 6 | . . . 6 2 2 2 Greatest Support 25 | 3 3 3 25 25 25 25 Greatest Overweight (x) . | . . . . . . . Average Overweight (x) . | . . . . . . . Largest Inventory Capacity . | . . . . . . . Average Capacity . | . . . . . . . Most Carried . | . . . . . . . Average Carried . | . . . . . . . Final Capacity . | . . . . . . . Final Carried . | . . . . . . . Class Distribution -------------------- 58% | Mutant 41% | Sprinter Dominant Class ---------------- Mutant | -10/Materials Mutant | -10/Mines Mutant | -9/Materials Sprinter | -9/Mines Sprinter | -9/Exiles Sprinter | -8/Mines Resources | -11 -10 -10 -9 -9 -9 -8 ----------- Run | Yrd Mat Min Mat Min Exi Min Matter Collected 119 | 53 . . . 66 . . Remotely . | . . . . . . . Salvage Created . | . . . . . . . Parts . | . . . . . . . Haulers Intercepted . | . . . . . . . Recyclers Shooed . | . . . . . . . Parts Field Recycled . | . . . . . . . Retrieved Matter . | . . . . . . . Parts Self-Destructed . | . . . . . . . Prevented . | . . . . . . . Parts Restored . | . . . . . . . Kills | -11 -10 -10 -9 -9 -9 -8 ------- Run | Yrd Mat Min Mat Min Exi Min Combat Hostiles Destroyed . | . . . . . . . Classes Destroyed . | . . . . . . . Best Kill Streak . | . . . . . . . Combat Bots Only . | . . . . . . . Max Kills in Single Turn . | . . . . . . . Gunslinging . | . . . . . . . Exploded . | . . . . . . . Melee . | . . . . . . . Uniques/NPCs Destroyed . | . . . . . . . Combat | -11 -10 -10 -9 -9 -9 -8 -------- Run | Yrd Mat Min Mat Min Exi Min Hostile Shots Fired 147 | . 15 9 115 8 . . Missed 56 | . 2 1 49 4 . . Hits 91 | . 13 8 66 4 . . Projectile 91 | . 13 8 66 4 . . Critical Strikes 1 | . . . 1 . . . Damage Taken 976 | . 128 77 732 39 . . Core 894 | . 128 77 657 32 . . Absorbed by Shields . | . . . . . . . Redirected to Core 264 | . . . 242 22 . . Core Remaining (%) 82 | 100 . 65 . . . . Volleys Fired 4 | . . . 4 . . . Largest 1 | . . . 1 . . . Hottest 60 | . . . 60 . . . Shots Fired 4 | . . . 4 . . . Gun . | . . . . . . . Cannon 4 | . . . 4 . . . Launcher . | . . . . . . . Special . | . . . . . . . Kinetic . | . . . . . . . Thermal 4 | . . . 4 . . . Explosive . | . . . . . . . Electromagnetic . | . . . . . . . Robot Hit Streak . | . . . . . . . Robot Miss Streak 4 | . . . 4 . . . Penetration Max . | . . . . . . . Secondary Targets . | . . . . . . . Shots Hit Robots . | . . . . . . . Core Hits 2 | . . 2 . . . . Critical Kills . | . . . . . . . Critical Parts Destroyed . | . . . . . . . Critical Strikes . | . . . . . . . Melee Attacks 5 | . . . 4 . 1 . Impact . | . . . . . . . Slashing 5 | . . . 4 . 1 . Piercing . | . . . . . . . Sneak Attacks . | . . . . . . . Combat Hostiles . | . . . . . . . Follow-up Attacks . | . . . . . . . Damage Inflicted 41 | . . 21 20 . . . Guns . | . . . . . . . Cannons . | . . . . . . . Explosions . | . . . . . . . Melee . | . . . . . . . Ramming 41 | . . 21 20 . . . Kinetic . | . . . . . . . Thermal . | . . . . . . . Explosive . | . . . . . . . Electromagnetic . | . . . . . . . Impact . | . . . . . . . Slashing . | . . . . . . . Piercing . | . . . . . . . Highest Corruption . | . . . . . . . Average Corruption . | . . . . . . . Corruption Purged . | . . . . . . . Corruption Blocked . | . . . . . . . Overload Shots . | . . . . . . . Overflow Damage . | . . . . . . . Projectiles . | . . . . . . . Explosions . | . . . . . . . Melee . | . . . . . . . Knockbacks . | . . . . . . . Impact . | . . . . . . . Kinetic . | . . . . . . . Secondary . | . . . . . . . Self-Inflicted Damage 19 | . . 9 10 . . . Shots . | . . . . . . . Rammed 10 | . . 6 4 . . . Targets Rammed 10 | . . 6 4 . . . Kicked . | . . . . . . . Crushed . | . . . . . . . Highest Temperature 65 | . . . 65 . . . Average Temperature 20 | . . . 20 . . . Received Heat Transfer 258 | . 54 . 204 . . . Siege Activations . | . . . . . . . Martial Activations . | . . . . . . . Shielding Activations . | . . . . . . . Robots Disrupted . | . . . . . . . Combat Hostiles . | . . . . . . . Robots Corrupted . | . . . . . . . Combat Hostiles . | . . . . . . . Parts Fried . | . . . . . . . Impact Corruptions . | . . . . . . . Robots Melted . | . . . . . . . Combat Hostiles . | . . . . . . . Parts Melted . | . . . . . . . Heat Transferred . | . . . . . . . Parts Sabotaged . | . . . . . . . Parts Stolen . | . . . . . . . Parts Stripped . | . . . . . . . Power Chain Reactions . | . . . . . . . Alert | -11 -10 -10 -9 -9 -9 -8 ------- Run | Yrd Mat Min Mat Min Exi Min Maximum Alert Level 1 | . . . 1 . . . Low Security (%) 96 | 100 100 100 91 100 . 100 Level 1 3 | . . . 8 . . . Level 2 . | . . . . . . . Level 3 . | . . . . . . . Level 4 . | . . . . . . . Level 5 . | . . . . . . . High Security . | . . . . . . . Max Security . | . . . . . . . Peak Influence 250 | . 77 75 250 127 . . Initial 97 | . . 30 25 97 . . Average 53 | . 33 25 65 110 . . Influence Increases 542 | . 97 105 310 30 . . Successful Hack 14 | . 7 . 7 . . . Destroy Structure 3 | . . . 3 . . . Partial Spotted 30 | . 15 . . 15 . . Lose Combat Pursuer 495 | . 75 105 300 15 . . Influence Decreases 542 | . 20 117 125 173 107 . Entered New Map 347 | . . 47 40 153 107 . Time Decay 175 | . 20 50 85 20 . . Lost Ally 20 | . . 20 . . . . Squads Dispatched 6 | . 2 1 3 . . . Investigation 3 | . 1 . 2 . . . Extermination . | . . . . . . . Reinforcement 2 | . 1 . 1 . . . Assault 1 | . . 1 . . . . Garrison . | . . . . . . . Intercept . | . . . . . . . Searches Triggered . | . . . . . . . Construction Impeded . | . . . . . . . Haulers Reinforced . | . . . . . . . Active Scanning Responses . | . . . . . . . Cargo Convoy Interrupts . | . . . . . . . Stealth | -11 -10 -10 -9 -9 -9 -8 --------- Run | Yrd Mat Min Mat Min Exi Min Distress Signals 3 | . 1 1 1 . . . Communications Jammed . | . . . . . . . Distress Signals . | . . . . . . . Times Spotted 73 | . 15 9 28 21 . . Peak Tracking Total 20 | . 10 4 13 20 9 . Tactical Retreats 11 | . 1 2 6 2 . . Traps | -11 -10 -10 -9 -9 -9 -8 ------- Run | Yrd Mat Min Mat Min Exi Min Traps Triggered 1 | . 1 . . . . . Indirectly . | . . . . . . . Trap Hack Attempts . | . . . . . . . Triggered . | . . . . . . . Disarmed . | . . . . . . . Reprogrammed . | . . . . . . . Reused . | . . . . . . . Traps Extracted . | . . . . . . . Installed . | . . . . . . . Triggered . | . . . . . . . Machines | -11 -10 -10 -9 -9 -9 -8 ---------- Run | Yrd Mat Min Mat Min Exi Min Machines Disabled 1 | . . . . . 1 . Max in Single Turn 1 | . . . . . 1 . Machines Repaired . | . . . . . . . Machines Dismantled . | . . . . . . . Machines Sabotaged . | . . . . . . . Overloaded Fab Kills . | . . . . . . . Hacking | -11 -10 -10 -9 -9 -9 -8 --------- Run | Yrd Mat Min Mat Min Exi Min Machines Accessed 6 | . 1 . 4 . 1 . Terminals 5 | . 1 . 4 . . . Fabricators . | . . . . . . . Repair Stations . | . . . . . . . Recycling Units . | . . . . . . . Scanalyzers . | . . . . . . . Garrison Access . | . . . . . . . Total Hacks 15 | . 2 . 12 . 1 . Successful 3 | . 1 . 1 . 1 . Failed 12 | . 1 . 11 . . . Catastrophic 3 | . 1 . 2 . . . Database Lockouts . | . . . . . . . Manual 15 | . 2 . 12 . 1 . Terminals 14 | . 2 . 12 . . . Fabricators . | . . . . . . . Repair Stations . | . . . . . . . Recycling Units . | . . . . . . . Scanalyzers . | . . . . . . . Garrison Access . | . . . . . . . Terminal Hacks 3 | . 1 . 1 . 1 . Branch Access Points 2 | . 1 . 1 . . . Proto ID Catalog 1 | . . . . . 1 . Fabricator Hacks . | . . . . . . . Repair Station Hacks . | . . . . . . . Recycling Unit Hacks . | . . . . . . . Scanalyzer . | . . . . . . . Garrison Access Hacks . | . . . . . . . Unauthorized Hacks . | . . . . . . . Terminals . | . . . . . . . Fabricators . | . . . . . . . Repair Stations . | . . . . . . . Recycling Units . | . . . . . . . Scanalyzers . | . . . . . . . Garrison Access . | . . . . . . . Data Cores Recovered . | . . . . . . . Used . | . . . . . . . Hacking Detections 3 | . . . 3 . . . Full Trace Events 3 | . . . 3 . . . Feedback Events . | . . . . . . . Feedback Blocked . | . . . . . . . Robot Schematics Acquired . | . . . . . . . Robots Built . | . . . . . . . Authchips . | . . . . . . . Time . | . . . . . . . Total Robot Build Rating . | . . . . . . . Part Schematics Acquired . | . . . . . . . Parts Built . | . . . . . . . Authchips . | . . . . . . . Time . | . . . . . . . Total Part Build Rating . | . . . . . . . Part Studies Acquired . | . . . . . . . Parts Repaired . | . . . . . . . Time . | . . . . . . . Parts Recycled . | . . . . . . . Recycled Matter . | . . . . . . . Retrieved Matter . | . . . . . . . Retrieved Components . | . . . . . . . Parts Scanalyzed . | . . . . . . . Part Schematics Acquired . | . . . . . . . Parts Damaged . | . . . . . . . Bothacking | -11 -10 -10 -9 -9 -9 -8 ------------ Run | Yrd Mat Min Mat Min Exi Min Used RIF Installer . | . . . . . . . Robots Hacked . | . . . . . . . Non-combat . | . . . . . . . Combat . | . . . . . . . Robot Hacks Applied . | . . . . . . . Relay Couplers Released . | . . . . . . . Fabnet Peak Effective % . | . . . . . . . Robots Rewired . | . . . . . . . Allies Hacked . | . . . . . . . Hacks Repelled . | . . . . . . . Allies | -11 -10 -10 -9 -9 -9 -8 -------- Run | Yrd Mat Min Mat Min Exi Min Total Allies 1 | . . 1 . . . . Largest Group 1 | . . 1 . . . . Highest-Rated Group 31 | . . 31 . . . . Highest-Rated Ally 31 | . . 31 . . . . Total Orders . | . . . . . . . Ally Attacks 5 | . . 5 . . . . Total Damage 87 | . . 87 . . . . Kills . | . . . . . . . Allies Corrupted . | . . . . . . . Allies Melted . | . . . . . . . Intel | -11 -10 -10 -9 -9 -9 -8 ------- Run | Yrd Mat Min Mat Min Exi Min Active Infowar (turns) . | . . . . . . . Robot Analysis Total . | . . . . . . . Derelict Logs Recovered 2 | . . 2 . . . . Drone Launches . | . . . . . . . Drone Recoveries . | . . . . . . . Exploration | -11 -10 -10 -9 -9 -9 -8 ------------- Run | Yrd Mat Min Mat Min Exi Min Turns Passed 509 | 12 55 122 195 59 57 9 Spaces Moved 1257 | 24 109 232 426 221 211 34 Core 562 | 24 109 232 197 . . . Treads . | . . . . . . . Legs . | . . . . . . . Wheels . | . . . . . . . Hover . | . . . . . . . Flight 695 | . . . 229 221 211 34 Fastest Speed 26 | 50 50 50 26 26 26 26 Average Speed 36 | 50 50 50 37 26 26 26 Slowest Speed 50 | 50 50 50 50 26 26 26 Overloaded Moves . | . . . . . . . Propulsion Burnouts . | . . . . . . . Robots Hopped 15 | . . . 15 . . . Potential Cave-ins 2 | . . . 2 . . . Cave-ins Triggered . | . . . . . . . Exploration Rate (%) 41 | 3 34 54 45 66 61 24 Regions Visited 6 Branch Regions 4 Pre-discovered Areas . | . . . . . . . Known Exits Taken 3 | . 1 . 1 . 1 . Unknown Exits Taken 3 | 1 . 1 . 1 . . Scrap Searched 1 | . . . . 1 . . Spaces Dug 4 | . . . 4 . . . Terrain Destroyed 6 | . . . 6 . . . Melee 4 | . . . 4 . . . Projectile 2 | . . . 2 . . . AOE . | . . . . . . . Terrain Rammed . | . . . . . . . Walls Destroyed . | . . . . . . . Machines Disabled . | . . . . . . . Actions | -11 -10 -10 -9 -9 -9 -8 --------- Run | Yrd Mat Min Mat Min Exi Min Total 1266 | 23 108 237 432 221 211 34 Wait 4 | . . . 4 . . . Move 1226 | 23 108 231 400 220 210 34 Hop 10 | . . . 10 . . . Pick Up . | . . . . . . . Fast Attach 5 | . . . 5 . . . Attach . | . . . . . . . Detach . | . . . . . . . Swap 2 | . . . 1 1 . . Drop . | . . . . . . . Fire 4 | . . . 4 . . . Melee 5 | . . . 4 . 1 . Ram 10 | . . 6 4 . . . Kick . | . . . . . . . Crush . | . . . . . . . Escape Stasis . | . . . . . . . Rewire . | . . . . . . . Trap . | . . . . . . . Miscellaneous . | . . . . . . . Route ------- -11/Scrapyard -10/Materials (discovered 2 exits: *Min x2) -10/Mines -9/Materials (discovered 3 exits: [*Mat x2] / *Min) -9/Mines (discovered 2 exits: [*Mat] / *Exi) -9/Exiles (discovered 2 exits: *Min x2) -8/Mines History --------- Turn | Location | Event 4 | -11/Scrapyard | Discovered new exit (range 14) 13 | -11/Scrapyard | Entered Materials 20 | -10/Materials | Identified exit to Mines 68 | -10/Materials | Entered Mines 92 | -10/Mines | Met a Derelict testing a Signal Generator 129 | -10/Mines | Learned Materials stockpile data 189 | -10/Mines | Discovered new exit (range 3) 190 | -10/Mines | Entered Materials 191 | -9/Materials | Identified exit to Mines 192 | -9/Materials | Reached level 2 247 | -9/Materials | Core integrity fell below 50% 263 | -9/Materials | Discovered new exit (range 16) 300 | -9/Materials | Upgraded with Propulsion slot (x3) 348 | -9/Materials | Discovered new exit (range 8) 385 | -9/Materials | Entered Mines 391 | -9/Mines | Joined a pair of Derelicts in attacking an 0b10 outpost 396 | -9/Mines | A weapon hastily lodged in a ceiling crevice suddenly fell to the ground 397 | -9/Mines | Assembled infested the area 438 | -9/Mines | Discovered new exit (range 14) 443 | -9/Mines | Deemed a non-threat by the Exiles lab entrance 443 | -9/Mines | Discovered new exit (range 5) 444 | -9/Mines | Met a Derelict bent on vengeance 444 | -9/Mines | Entered Exiles 445 | -9/Exiles | Identified exit to Mines 452 | -9/Exiles | Met 8R-AWN 455 | -9/Exiles | Met EX-HEX 462 | -9/Exiles | Met EX-BIN 465 | -9/Exiles | Reached level 3 465 | -9/Exiles | Aligned with FarCom system 466 | -9/Exiles | Given EX-Vault access code 472 | -9/Exiles | Opened EX-Vault 478 | -9/Exiles | Warned to stay clear of 0b10 Research branches 487 | -9/Exiles | Met EX-DEC 491 | -9/Exiles | Attacked by the Exiles 499 | -9/Exiles | Discovered exit to Mines (range 10) 501 | -9/Exiles | Entered Mines 510 | -8/Mines | Self-destructed Last Messages --------------- AWS/Autocannon Field Lobotomy Kit Longsword +1 Deploy-a-Sentry [CShell_errno=`10`] EX-BIN: Oh yeah, I'd suggest you stay away from the 0b10 Research branches, since the FarCom signals could be picked up there, but you're welcome to try if you really want to. And if we have to leave here due to unforeseen circumstances, don't worry the FarCom system will continue to maintain contact via our distributed network. EX-DEC: Ah I see we have a visitor. One wrong move in here and I'll invert your atomic chain! 00489_ EX-DEC: "Oops, I hope HEX didn't hear that..." 00490_ Machine disabled. 00491_ EXILES: Hostile robot within lab perimeter. Defensive protocols time, folks! 00499_ EXIT=FOUND: MINES LOCATION=MINES GOAL=ESCAPE Map ----- +----------------------------------------------------+ | ?????????????????????????????????????????????????? | | ?????????????????????????????????????????????????? | | ?????????????????????????????????????????????????? | | ?????????????????????????????????????????????????? | | ?????????????????????????????????????????????????? | | ?????????????????????????????????????????????????? | | ?????????????????????????????????????????????????? | | ?????????????????????????????????????????????????? | | ?????????????????????????????????????????????????? | | ?????????????????????????????????????????????????? | | ???????????????????????? ???????????????????????? | | ???????????????????????# ???????????????????????? | | ???????????????????# ?# ???????????????????????? | | ???????????????????# ?# ???????????????????????? | | ???????????????????# ## ???????????????????????? | | ??????????????????## ???????????????????????? | | ??????????????????? ##?????????????????????? | | ???????????????????? #?????????????????????? | | ????????????????????? #?????????????????????? | | ?????????????????????? #?????????????????????? | | ??????????????????????# #?????????????????????? | | ??????????????????????# #?????????????????????? | | ??????????????????????# #?????????????????????? | | ???????????????????????# ##????????????????????? | | ????????????????????????# ##???????????????????? | | ????????????????????????#@ ##??????????????????? | | ???????????????????????## ##??####???????????? | | ??????????????????# ## #?## #####??????## | | ???????????????????# ### ##????## | | ???????????????????## """ """ ##??## | | ????????????????????# """ """ #### | | ????????????????????# """ ## """ | | ????????????????????# ### | | ????????????????????## ##### #### | | ?????????????????????## ????# #???# | | ??????????????????????# ????## ###?# | | ??????????????????????# ?????## #?# | | ??????????????????????## ??????## #?## | | ??????????????????????? ???????## ### #??# | | ??????????????????????? ????????## #?# #??## | | ??????????????????????? #?????????### ##?# ##### | | ?????????????????????????????????????####??# | | ???????????????????????????????????????????####### | | ?????????????????????????????????????????????????# | | ?????????????????????????????????????????????????? | | ?????????????????????????????????????????????????? | | ?????????????????????????????????????????????????? | | | | | | | +----------------------------------------------------+ Best States ------------- Heat Dissipation 25 Energy Generation 10 Energy Capacity 100 Matter Stores 174 Matter Capacity 300 Sight Range 16 Terrain Scan Density 10 Evasion (%) 64 Item Schematics ----------------- None Robot Schematics ------------------ None Fabricated ------------ Nothing Repaired ---------- Nothing Studied --------- None Alien Tech Used ----------------- None Achievements -------------- None Challenges ------------ None RPGLIKE | -11 -10 -10 -9 -9 -9 -8 --------- Run | Yrd Mat Min Mat Min Exi Min Levels Raised 2 | . . . 1 . 1 . XP Earned 6520 | 3000 35 600 1535 500 350 500 XP Spent 3905 | . . . 3905 . . . Upgrades 18 | . . . 18 . . . Propulsion Slot 3 | . . . 3 . . . Core Integrity 13 | . . . 13 . . . Energy Generation 1 | . . . 1 . . . Mass Support 1 | . . . 1 . . . Protomatter Created . | . . . . . . . Protomatter Decayed 24 | . . . 11 13 . . Game ------ Seed GlidesysHelicalWheel Manual? 0 Play Time 00:05:06 Cumulative 667.7 hours Start 2026.07.16 @ 09:07:21 End 2026.07.16 @ 09:12:21 Sessions 1 Manual Loads 0 Difficulty Rogue Special Mode Winter2019/RPGLIKE Game No. 322 Rogue 168 Adventurer 154 Explorer 0 Win Type - Total 22 Types 4/5/4/3/2/1/0/1/1/1 Lore% 95 Gallery% 88 Achievement% 68 Wizard Run 0 Options --------- Layout 0 ASCII 0 Keyboard 0 Movement Numpad Keybinds 0 Fullscreen 2 Font 18/SmallcapsGlow Map View 76x50 Zoom Use 0% Tactical HUD 1 Map Filters NONE Filters NONE Steam 1 RUN: b9493a4b-253d-4900-a3f0-b50a0c720c1d